[Event "*** Titled Tuesday Blitz"]
[Site "Chess.com"]
[Date "2020.04.14"]
[Round "2"]
[White "Kavyev_Ruslan"]
[Black "cassoulet"]
[Result "1-0"]
[WhiteElo "2531"]
[BlackElo "2705"]
[TimeControl "180+1"]
[EndTime "10:17:33 PDT"]
[Termination "Kavyev_Ruslan won by checkmate"]

1. d4 {[%clk 0:03:00.9]} 1... d5 {[%clk 0:02:59.2]} 2. c4 {[%clk 0:03:01.5]}
2... e5 {[%clk 0:02:59.2]} 3. Nf3 {[%clk 0:03:02.1]} 3... exd4 {[%clk
0:02:54.9]} 4. cxd5 {[%clk 0:02:57.8]} 4... Nf6 {[%clk 0:02:50.4]} 5. Nxd4
{[%clk 0:02:56.5]} 5... Qxd5 {[%clk 0:02:46]} 6. Nc3 {[%clk 0:02:55.9]} 6... Bb4
{[%clk 0:02:45.6]} 7. Qa4+ {[%clk 0:02:51.9]} 7... Nc6 {[%clk 0:02:43.5]} 8.
Nxc6 {[%clk 0:02:51.9]} 8... Bxc3+ {[%clk 0:02:41.3]} 9. bxc3 {[%clk 0:02:52.8]}
9... bxc6 {[%clk 0:02:37.9]} 10. Ba3 {[%clk 0:02:44.6]} 10... Bd7 {[%clk
0:02:26.8]} 11. e3 {[%clk 0:02:39.8]} 11... Ne4 {[%clk 0:02:16.5]} 12. Qd4
{[%clk 0:02:27]} 12... Qf5 {[%clk 0:01:57.3]} 13. f3 {[%clk 0:02:23.1]} 13...
Nd6 {[%clk 0:01:28.4]} 14. Qxg7 {[%clk 0:02:16.1]} 14... Rf8 {[%clk 0:01:02.5]}
15. Qd4 {[%clk 0:02:05.4]} 15... Rg8 {[%clk 0:00:55.6]} 16. Rd1 {[%clk
0:02:01.6]} 16... Qa5 {[%clk 0:00:44.1]} 17. Bxd6 {[%clk 0:01:57.6]} 17... cxd6
{[%clk 0:00:45]} 18. Qxd6 {[%clk 0:01:57.6]} 18... Qxc3+ {[%clk 0:00:41.5]} 19.
Kf2 {[%clk 0:01:57.6]} 19... Rd8 {[%clk 0:00:36.4]} 20. Be2 {[%clk 0:01:46.1]}
20... Rg6 {[%clk 0:00:34.4]} 21. Qf4 {[%clk 0:01:38]} 21... Qc2 {[%clk
0:00:25.2]} 22. Rd6 {[%clk 0:01:10.3]} 22... Ke7 {[%clk 0:00:20.5]} 23. Rhd1
{[%clk 0:01:09.9]} 23... Rxd6 {[%clk 0:00:11.5]} 24. Qxd6+ {[%clk 0:01:09.2]}
24... Ke8 {[%clk 0:00:11.4]} 25. Rd4 {[%clk 0:01:06.3]} 25... Qxa2 {[%clk
0:00:09.8]} 26. f4 {[%clk 0:00:46.2]} 26... Qa5 {[%clk 0:00:08.4]} 27. Bc4
{[%clk 0:00:41.1]} 27... Qh5 {[%clk 0:00:06.3]} 28. Re4+ {[%clk 0:00:23.5]}
28... Be6 {[%clk 0:00:06.1]} 29. Rxe6+ {[%clk 0:00:19.8]} 29... fxe6 {[%clk
0:00:06.2]} 30. Qxe6+ {[%clk 0:00:20.7]} 30... Kf8 {[%clk 0:00:06.5]} 31. Qf6+
{[%clk 0:00:21.4]} 31... Ke8 {[%clk 0:00:07.1]} 32. Qe6+ {[%clk 0:00:20.4]}
32... Kf8 {[%clk 0:00:07.4]} 33. Be2 {[%clk 0:00:19.5]} 33... Qf7 {[%clk
0:00:07.2]} 34. Qe5 {[%clk 0:00:18.9]} 34... Kg8 {[%clk 0:00:05.4]} 35. Qg5+
{[%clk 0:00:18.7]} 35... Qg7 {[%clk 0:00:04.7]} 36. Qxd8+ {[%clk 0:00:19.4]}
36... Qf8 {[%clk 0:00:05]} 37. Bc4+ {[%clk 0:00:19.3]} 37... Kg7 {[%clk
0:00:05.1]} 38. Qg5+ {[%clk 0:00:20]} 38... Kh8 {[%clk 0:00:05.5]} 39. Qe5+
{[%clk 0:00:20.4]} 39... Qg7 {[%clk 0:00:03.9]} 40. Qe8+ {[%clk 0:00:20.4]}
40... Qg8 {[%clk 0:00:03.6]} 41. Qxg8# {[%clk 0:00:20.7]} 1-0

[Event "*** Titled Tuesday Blitz"]
[Site "Chess.com"]
[Date "2020.04.14"]
[Round "2"]
[White "arctic_t00"]
[Black "JoachimMouhamad"]
[Result "1-0"]
[WhiteElo "2497"]
[BlackElo "2244"]
[TimeControl "180+1"]
[EndTime "10:17:33 PDT"]
[Termination "arctic_t00 won on time"]

1. d4 {[%clk 0:03:00.9]} 1... Nf6 {[%clk 0:02:58.9]} 2. Nf3 {[%clk 0:03:01.3]}
2... g6 {[%clk 0:02:57.5]} 3. Nbd2 {[%clk 0:03:00.5]} 3... d5 {[%clk 0:02:53]}
4. e3 {[%clk 0:02:59.5]} 4... Bg7 {[%clk 0:02:45.3]} 5. b4 {[%clk 0:02:59.6]}
5... O-O {[%clk 0:02:29.7]} 6. Bb2 {[%clk 0:02:58.6]} 6... Ne4 {[%clk
0:01:55.9]} 7. Nxe4 {[%clk 0:02:40]} 7... dxe4 {[%clk 0:01:55]} 8. Nd2 {[%clk
0:02:38.7]} 8... e5 {[%clk 0:01:23.6]} 9. c3 {[%clk 0:02:19.1]} 9... f5 {[%clk
0:01:17.4]} 10. Bc4+ {[%clk 0:02:17.9]} 10... Kh8 {[%clk 0:01:15.8]} 11. h4
{[%clk 0:01:46.9]} 11... Nd7 {[%clk 0:01:13.3]} 12. h5 {[%clk 0:01:46.3]} 12...
g5 {[%clk 0:01:12.8]} 13. h6 {[%clk 0:01:46.1]} 13... Bf6 {[%clk 0:01:12.8]} 14.
g4 {[%clk 0:01:34.6]} 14... Nb6 {[%clk 0:01:07.9]} 15. Bb3 {[%clk 0:01:34.3]}
15... c6 {[%clk 0:00:54.8]} 16. Qe2 {[%clk 0:01:24]} 16... a5 {[%clk 0:00:51.7]}
17. a3 {[%clk 0:01:08.4]} 17... Qe7 {[%clk 0:00:50.3]} 18. Bc2 {[%clk
0:00:42.8]} 18... axb4 {[%clk 0:00:48]} 19. cxb4 {[%clk 0:00:34.5]} 19... Na4
{[%clk 0:00:42.2]} 20. Bxa4 {[%clk 0:00:31.6]} 20... Rxa4 {[%clk 0:00:43.1]} 21.
Qd1 {[%clk 0:00:27.5]} 21... b5 {[%clk 0:00:38.5]} 22. Nb3 {[%clk 0:00:26.4]}
22... fxg4 {[%clk 0:00:33.7]} 23. Qc2 {[%clk 0:00:25.5]} 23... Be6 {[%clk
0:00:30.3]} 24. Nc5 {[%clk 0:00:24.6]} 24... Bc4 {[%clk 0:00:27.2]} 25. dxe5
{[%clk 0:00:24.2]} 25... Bxe5 {[%clk 0:00:25.3]} 26. Qxe4 {[%clk 0:00:24.1]}
26... Bxb2 {[%clk 0:00:10.5]} 27. Qxe7 {[%clk 0:00:23.1]} 27... Raa8 {[%clk
0:00:06.9]} 28. Nd7 {[%clk 0:00:13.9]} 28... Rfe8 {[%clk 0:00:04.5]} 29. Qd6
{[%clk 0:00:10.7]} 29... Bxa1 {[%clk 0:00:03.2]} 30. Kd2 {[%clk 0:00:07]} 30...
Bb2 {[%clk 0:00:01.9]} 31. Kc2 {[%clk 0:00:06.9]} 31... Rad8 {[%clk 0:00:01.8]}
32. Kxb2 {[%clk 0:00:06.6]} 1-0

[Event "*** Titled Tuesday Blitz"]
[Site "Chess.com"]
[Date "2020.04.14"]
[Round "2"]
[White "Xeniya2005"]
[Black "Bad_left_hook"]
[Result "0-1"]
[WhiteElo "2175"]
[BlackElo "2570"]
[TimeControl "180+1"]
[EndTime "10:17:35 PDT"]
[Termination "Bad_left_hook won by resignation"]

1. e4 {[%clk 0:03:00.9]} 1... c5 {[%clk 0:02:59.7]} 2. Nf3 {[%clk 0:03:00.6]}
2... d6 {[%clk 0:03:00]} 3. d4 {[%clk 0:03:01.2]} 3... cxd4 {[%clk 0:03:00.9]}
4. Nxd4 {[%clk 0:03:01.3]} 4... Nf6 {[%clk 0:02:57.4]} 5. Nc3 {[%clk 0:03:00.9]}
5... a6 {[%clk 0:02:57.6]} 6. Nb3 {[%clk 0:02:57.6]} 6... Nc6 {[%clk 0:02:54.8]}
7. Be3 {[%clk 0:02:55.5]} 7... Ng4 {[%clk 0:02:43.2]} 8. Bf4 {[%clk 0:02:54.6]}
8... e5 {[%clk 0:02:34.2]} 9. Bg3 {[%clk 0:02:53.2]} 9... Be7 {[%clk 0:02:30.8]}
10. h3 {[%clk 0:02:49.4]} 10... Nf6 {[%clk 0:02:28.6]} 11. a4 {[%clk 0:02:48.2]}
11... O-O {[%clk 0:02:23.3]} 12. Bc4 {[%clk 0:02:46.5]} 12... Na5 {[%clk
0:02:18.4]} 13. Nxa5 {[%clk 0:02:45.2]} 13... Qxa5 {[%clk 0:02:19.3]} 14. O-O
{[%clk 0:02:41]} 14... Be6 {[%clk 0:02:18.6]} 15. Bd5 {[%clk 0:02:34.1]} 15...
Nxd5 {[%clk 0:02:08.9]} 16. Nxd5 {[%clk 0:02:32.5]} 16... Bxd5 {[%clk
0:02:08.5]} 17. Qxd5 {[%clk 0:02:32]} 17... Qxd5 {[%clk 0:02:08]} 18. exd5
{[%clk 0:02:32.5]} 18... Rfc8 {[%clk 0:02:03.3]} 19. c3 {[%clk 0:02:32.5]} 19...
Rc4 {[%clk 0:02:02]} 20. Rfd1 {[%clk 0:02:19.4]} 20... f5 {[%clk 0:01:58.8]} 21.
f3 {[%clk 0:02:19]} 21... Rac8 {[%clk 0:01:50.5]} 22. Bf2 {[%clk 0:02:16.4]}
22... h5 {[%clk 0:01:46.8]} 23. Bb6 {[%clk 0:02:05.2]} 23... Bd8 {[%clk
0:01:39.1]} 24. Bxd8 {[%clk 0:01:54]} 24... Rxd8 {[%clk 0:01:40]} 25. Kf2 {[%clk
0:01:54.4]} 25... Rdc8 {[%clk 0:01:35.6]} 26. Rd2 {[%clk 0:01:45.6]} 26... Kf7
{[%clk 0:01:32.7]} 27. Ra3 {[%clk 0:01:37.1]} 27... Kf6 {[%clk 0:01:29.4]} 28.
Rb3 {[%clk 0:01:34.6]} 28... R8c7 {[%clk 0:01:29.4]} 29. Rb6 {[%clk 0:01:34]}
29... Ke7 {[%clk 0:01:29.4]} 30. a5 {[%clk 0:01:22]} 30... R4c5 {[%clk
0:01:20.2]} 31. Rb4 {[%clk 0:01:21.4]} 31... Rxa5 {[%clk 0:01:04.3]} 32. Rh4
{[%clk 0:01:18.9]} 32... g6 {[%clk 0:01:04.1]} 33. g4 {[%clk 0:01:18.4]} 33...
Kf6 {[%clk 0:01:00.9]} 34. gxf5 {[%clk 0:01:02.3]} 34... Kxf5 {[%clk 0:00:58.1]}
35. Rb4 {[%clk 0:00:55.9]} 35... b5 {[%clk 0:00:50.3]} 36. h4 {[%clk 0:00:53.5]}
36... Ra1 {[%clk 0:00:49.3]} 37. Ke3 {[%clk 0:00:51.3]} 37... Re1+ {[%clk
0:00:47.5]} 38. Kd3 {[%clk 0:00:33.6]} 38... Rc5 {[%clk 0:00:42.7]} 39. Kc2
{[%clk 0:00:30.1]} 39... a5 {[%clk 0:00:42]} 40. Rb3 {[%clk 0:00:25.2]} 40...
Rh1 {[%clk 0:00:36.5]} 41. Ra3 {[%clk 0:00:21.4]} 41... a4 {[%clk 0:00:36.2]}
42. b3 {[%clk 0:00:18.2]} 42... Rxh4 {[%clk 0:00:35.4]} 43. bxa4 {[%clk
0:00:18.2]} 43... Rxa4 {[%clk 0:00:36.3]} 44. Rxa4 {[%clk 0:00:16.6]} 44... bxa4
{[%clk 0:00:37.2]} 45. Kb2 {[%clk 0:00:15.3]} 45... g5 {[%clk 0:00:36.7]} 46.
Rd3 {[%clk 0:00:14.9]} 46... g4 {[%clk 0:00:34.3]} 47. fxg4+ {[%clk 0:00:15.1]}
47... hxg4 {[%clk 0:00:35.2]} 48. Ka3 {[%clk 0:00:14.8]} 48... Ke4 {[%clk
0:00:35.6]} 49. Kxa4 {[%clk 0:00:15.3]} 49... Kxd3 {[%clk 0:00:35.1]} 0-1

[Event "*** Titled Tuesday Blitz"]
[Site "Chess.com"]
[Date "2020.04.14"]
[Round "2"]
[White "StegariuVlad"]
[Black "floplover"]
[Result "1-0"]
[WhiteElo "2590"]
[BlackElo "2299"]
[TimeControl "180+1"]
[EndTime "10:17:37 PDT"]
[Termination "StegariuVlad won by resignation"]

1. e4 {[%clk 0:03:00.9]} 1... c6 {[%clk 0:02:59]} 2. d4 {[%clk 0:03:00.1]} 2...
d5 {[%clk 0:02:59.9]} 3. exd5 {[%clk 0:03:00.8]} 3... cxd5 {[%clk 0:02:57.3]} 4.
Bd3 {[%clk 0:03:00.9]} 4... Nc6 {[%clk 0:02:56.7]} 5. c3 {[%clk 0:03:00.4]} 5...
Nf6 {[%clk 0:02:57.2]} 6. h3 {[%clk 0:03:00.3]} 6... g6 {[%clk 0:02:54.3]} 7.
Qc2 {[%clk 0:02:58.2]} 7... Bg7 {[%clk 0:02:45.2]} 8. Nf3 {[%clk 0:02:57]} 8...
O-O {[%clk 0:02:45.3]} 9. O-O {[%clk 0:02:55.9]} 9... Qc7 {[%clk 0:02:33.9]} 10.
Re1 {[%clk 0:02:53.8]} 10... Re8 {[%clk 0:02:29.2]} 11. a4 {[%clk 0:02:45.9]}
11... e5 {[%clk 0:02:13.8]} 12. dxe5 {[%clk 0:02:44.9]} 12... Nxe5 {[%clk
0:02:14.7]} 13. Nxe5 {[%clk 0:02:44.3]} 13... Rxe5 {[%clk 0:02:15.2]} 14. Rxe5
{[%clk 0:02:43.5]} 14... Qxe5 {[%clk 0:02:16.1]} 15. Be3 {[%clk 0:02:43.9]}
15... Bd7 {[%clk 0:01:32.7]} 16. Nd2 {[%clk 0:02:39.2]} 16... Rc8 {[%clk
0:01:32.3]} 17. Bxa7 {[%clk 0:02:19.1]} 17... Nh5 {[%clk 0:01:18.6]} 18. Bd4
{[%clk 0:01:37.4]} 18... Qg5 {[%clk 0:01:14.5]} 19. Nf3 {[%clk 0:01:34.9]} 19...
Qf4 {[%clk 0:01:10.4]} 20. Be3 {[%clk 0:01:31.5]} 20... Qf6 {[%clk 0:00:57.3]}
21. Bg5 {[%clk 0:01:23]} 21... Qd6 {[%clk 0:00:53.8]} 22. Re1 {[%clk 0:01:21.5]}
22... Nf4 {[%clk 0:00:50]} 23. Bf1 {[%clk 0:01:17]} 23... h6 {[%clk 0:00:43.9]}
24. Be7 {[%clk 0:01:16.5]} 24... Qb6 {[%clk 0:00:41.5]} 25. Qd2 {[%clk
0:01:12.6]} 25... g5 {[%clk 0:00:40.7]} 26. Nd4 {[%clk 0:00:58.7]} 26... Bxd4
{[%clk 0:00:29.5]} 27. cxd4 {[%clk 0:00:58.6]} 27... Bf5 {[%clk 0:00:28.3]} 28.
a5 {[%clk 0:00:55.4]} 28... Qb3 {[%clk 0:00:25.8]} 29. Qb4 {[%clk 0:00:50.1]}
29... Qxb4 {[%clk 0:00:20.4]} 30. Bxb4 {[%clk 0:00:49.1]} 30... Rc2 {[%clk
0:00:19.8]} 31. Bc3 {[%clk 0:00:49.2]} 31... Bd3 {[%clk 0:00:18.4]} 32. Bxd3
{[%clk 0:00:40.3]} 32... Nxd3 {[%clk 0:00:19.3]} 33. Re7 {[%clk 0:00:40.2]}
33... Nxb2 {[%clk 0:00:16.6]} 34. Bb4 {[%clk 0:00:33.4]} 34... Nd3 {[%clk
0:00:15.2]} 35. Rxb7 {[%clk 0:00:24.4]} 35... Rc1+ {[%clk 0:00:10.7]} 36. Kh2
{[%clk 0:00:23.8]} 36... Nxf2 {[%clk 0:00:11.3]} 37. a6 {[%clk 0:00:22.5]} 37...
g4 {[%clk 0:00:06.3]} 38. hxg4 {[%clk 0:00:21.8]} 38... Nxg4+ {[%clk 0:00:05.7]}
39. Kg3 {[%clk 0:00:21.9]} 39... Nf6 {[%clk 0:00:05.7]} 40. a7 {[%clk
0:00:21.8]} 40... Ne4+ {[%clk 0:00:05.9]} 41. Kf4 {[%clk 0:00:20.9]} 41... Rf1+
{[%clk 0:00:03.5]} 42. Ke3 {[%clk 0:00:20.9]} 42... Kg7 {[%clk 0:00:02.1]} 43.
a8=Q {[%clk 0:00:20.4]} 1-0

[Event "*** Titled Tuesday Blitz"]
[Site "Chess.com"]
[Date "2020.04.14"]
[Round "2"]
[White "Indianlad"]
[Black "Promacherr"]
[Result "1-0"]
[WhiteElo "2967"]
[BlackElo "2607"]
[TimeControl "180+1"]
[EndTime "10:17:38 PDT"]
[Termination "Indianlad won on time"]

1. e4 {[%clk 0:03:00.2]} 1... e6 {[%clk 0:02:56.1]} 2. d4 {[%clk 0:03:00.2]}
2... d5 {[%clk 0:02:56.3]} 3. Nc3 {[%clk 0:03:00.7]} 3... Nf6 {[%clk 0:02:56.3]}
4. e5 {[%clk 0:02:58.6]} 4... Nfd7 {[%clk 0:02:56.3]} 5. f4 {[%clk 0:02:59.2]}
5... c5 {[%clk 0:02:56.7]} 6. Nf3 {[%clk 0:02:59.8]} 6... Nc6 {[%clk 0:02:57.3]}
7. Be3 {[%clk 0:03:00.2]} 7... Be7 {[%clk 0:02:57.9]} 8. Be2 {[%clk 0:02:59.6]}
8... O-O {[%clk 0:02:55.3]} 9. O-O {[%clk 0:02:59.8]} 9... a6 {[%clk 0:02:55.7]}
10. Qd2 {[%clk 0:02:53.8]} 10... b5 {[%clk 0:02:55.3]} 11. Nd1 {[%clk
0:02:54.3]} 11... cxd4 {[%clk 0:02:21.6]} 12. Nxd4 {[%clk 0:02:53.9]} 12... Bb7
{[%clk 0:02:21.4]} 13. c3 {[%clk 0:02:51.1]} 13... Nc5 {[%clk 0:02:21]} 14. Nf2
{[%clk 0:02:51.4]} 14... Rc8 {[%clk 0:02:18.9]} 15. Rad1 {[%clk 0:02:50.7]}
15... Nxd4 {[%clk 0:02:14]} 16. cxd4 {[%clk 0:02:43.6]} 16... Ne4 {[%clk
0:02:09.1]} 17. Nxe4 {[%clk 0:02:43.7]} 17... dxe4 {[%clk 0:02:10]} 18. f5
{[%clk 0:02:44.3]} 18... exf5 {[%clk 0:02:07.7]} 19. Rxf5 {[%clk 0:02:45.2]}
19... Bd5 {[%clk 0:02:06.6]} 20. Rdf1 {[%clk 0:01:56.1]} 20... f6 {[%clk
0:01:59.9]} 21. exf6 {[%clk 0:01:30.1]} 21... Rxf6 {[%clk 0:01:59.6]} 22. Bg4
{[%clk 0:01:25.8]} 22... Rcc6 {[%clk 0:01:52.9]} 23. h3 {[%clk 0:01:12.7]} 23...
Rxf5 {[%clk 0:01:18.4]} 24. Rxf5 {[%clk 0:01:13.6]} 24... Rf6 {[%clk 0:01:16.8]}
25. b3 {[%clk 0:01:03.8]} 25... Rxf5 {[%clk 0:01:08.1]} 26. Bxf5 {[%clk
0:01:04.7]} 26... Qc7 {[%clk 0:00:55.8]} 27. Qf2 {[%clk 0:00:57.3]} 27... Bf6
{[%clk 0:00:34.4]} 28. g4 {[%clk 0:00:53.3]} 28... h6 {[%clk 0:00:25.4]} 29. Bg6
{[%clk 0:00:50.5]} 29... Qc3 {[%clk 0:00:22.9]} 30. Qf4 {[%clk 0:00:36.4]} 30...
Qe1+ {[%clk 0:00:20.3]} 31. Kh2 {[%clk 0:00:28.4]} 31... Qe2+ {[%clk 0:00:19.7]}
32. Kg3 {[%clk 0:00:22]} 32... Kh8 {[%clk 0:00:05.2]} 33. Bxe4 {[%clk
0:00:17.4]} 33... Bxe4 {[%clk 0:00:03.2]} 34. Qxe4 {[%clk 0:00:17.5]} 34... Qe1+
{[%clk 0:00:03.1]} 35. Kg2 {[%clk 0:00:15.3]} 35... Qe2+ {[%clk 0:00:03.2]} 36.
Kg3 {[%clk 0:00:14.7]} 36... Qe1+ {[%clk 0:00:03.4]} 37. Kf3 {[%clk 0:00:11.6]}
37... Qh1+ {[%clk 0:00:01.8]} 38. Kf4 {[%clk 0:00:12.3]} 1-0

[Event "*** Titled Tuesday Blitz"]
[Site "Chess.com"]
[Date "2020.04.14"]
[Round "2"]
[White "kingandqueen2017"]
[Black "Benjoneliere44"]
[Result "1/2-1/2"]
[WhiteElo "2314"]
[BlackElo "2644"]
[TimeControl "180+1"]
[EndTime "10:17:38 PDT"]
[Termination "Game drawn by agreement"]

1. d4 {[%clk 0:03:00.9]} 1... d6 {[%clk 0:02:59.7]} 2. e4 {[%clk 0:03:00.5]}
2... g6 {[%clk 0:02:59.5]} 3. c4 {[%clk 0:02:59.9]} 3... Bg7 {[%clk 0:02:59.3]}
4. Nc3 {[%clk 0:02:59.5]} 4... a6 {[%clk 0:02:56.4]} 5. Be3 {[%clk 0:02:57.6]}
5... Nf6 {[%clk 0:02:52.5]} 6. f3 {[%clk 0:02:57.3]} 6... O-O {[%clk 0:02:50.8]}
7. Qd2 {[%clk 0:02:54.3]} 7... c5 {[%clk 0:02:50.2]} 8. Nge2 {[%clk 0:02:50]}
8... Qa5 {[%clk 0:02:46.2]} 9. h4 {[%clk 0:02:43.8]} 9... Nc6 {[%clk 0:02:27.8]}
10. dxc5 {[%clk 0:02:28.6]} 10... dxc5 {[%clk 0:02:26.1]} 11. Nd5 {[%clk
0:02:28.8]} 11... Qxd2+ {[%clk 0:02:24.7]} 12. Kxd2 {[%clk 0:02:27.3]} 12... Rd8
{[%clk 0:02:17.4]} 13. Kc1 {[%clk 0:02:24.1]} 13... Nxd5 {[%clk 0:02:01.2]} 14.
cxd5 {[%clk 0:02:22]} 14... Nd4 {[%clk 0:02:02.1]} 15. Nc3 {[%clk 0:02:18.1]}
15... e6 {[%clk 0:01:55.8]} 16. dxe6 {[%clk 0:02:17.1]} 16... Bxe6 {[%clk
0:01:55.2]} 17. h5 {[%clk 0:02:09.4]} 17... b5 {[%clk 0:01:52.5]} 18. hxg6
{[%clk 0:02:09.1]} 18... hxg6 {[%clk 0:01:53]} 19. Bh6 {[%clk 0:02:06]} 19... f5
{[%clk 0:01:43.4]} 20. Bxg7 {[%clk 0:02:05.6]} 20... Kxg7 {[%clk 0:01:43.2]} 21.
exf5 {[%clk 0:01:55.8]} 21... Bxf5 {[%clk 0:01:40.1]} 22. g4 {[%clk 0:01:53.9]}
22... Be6 {[%clk 0:01:28.9]} 23. Bg2 {[%clk 0:01:52.6]} 23... Bc4 {[%clk
0:01:09.6]} 24. b3 {[%clk 0:01:48.2]} 24... b4 {[%clk 0:00:54.9]} 25. Na4 {[%clk
0:01:21.6]} 25... Ne2+ {[%clk 0:00:53.8]} 26. Kc2 {[%clk 0:01:18.8]} 26... Bd3+
{[%clk 0:00:54.2]} 27. Kb2 {[%clk 0:01:18.5]} 27... Bb5 {[%clk 0:00:54.6]} 28.
Rad1 {[%clk 0:01:15.3]} 28... Bxa4 {[%clk 0:00:53.4]} 29. bxa4 {[%clk 0:01:13]}
29... Nc3 {[%clk 0:00:53.6]} 30. Rxd8 {[%clk 0:01:07.4]} 30... Rxd8 {[%clk
0:00:54.5]} 31. Rc1 {[%clk 0:01:05.7]} 31... Rd2+ {[%clk 0:00:44.5]} 32. Rc2
{[%clk 0:01:05.3]} 32... Nd1+ {[%clk 0:00:44.8]} 33. Kb3 {[%clk 0:01:04]} 33...
Rxc2 {[%clk 0:00:45.7]} 34. Kxc2 {[%clk 0:01:04]} 34... Ne3+ {[%clk 0:00:46.6]}
35. Kd3 {[%clk 0:01:04.3]} 35... Nxg2 {[%clk 0:00:47.5]} 36. Kc4 {[%clk
0:01:04.7]} 36... Ne1 {[%clk 0:00:39.1]} 37. Kxc5 {[%clk 0:01:03.6]} 37... Nxf3
{[%clk 0:00:39]} 38. Kxb4 {[%clk 0:00:59.5]} 38... Ne5 {[%clk 0:00:33.1]} 39. g5
{[%clk 0:00:59.1]} 39... Nf7 {[%clk 0:00:32.4]} 40. Ka5 {[%clk 0:00:58.8]} 40...
Nxg5 {[%clk 0:00:33.3]} 41. Kxa6 {[%clk 0:00:59.2]} 41... Ne6 {[%clk 0:00:34.2]}
42. a5 {[%clk 0:00:58.2]} 42... Nc5+ {[%clk 0:00:30]} 43. Kb6 {[%clk 0:00:52.5]}
43... Nd7+ {[%clk 0:00:27.2]} 44. Kc6 {[%clk 0:00:51.9]} 44... Nb8+ {[%clk
0:00:24.4]} 45. Kb7 {[%clk 0:00:47.8]} 45... Nd7 {[%clk 0:00:24.2]} 46. Kc7
{[%clk 0:00:40.9]} 46... Nc5 {[%clk 0:00:21.1]} 47. Kc6 {[%clk 0:00:40]} 47...
Na6 {[%clk 0:00:18.2]} 48. Kb6 {[%clk 0:00:38.1]} 48... Nb8 {[%clk 0:00:18.5]}
49. Kb7 {[%clk 0:00:35.6]} 49... Nd7 {[%clk 0:00:18.2]} 50. Kc6 {[%clk
0:00:33.3]} 1/2-1/2

[Event "*** Titled Tuesday Blitz"]
[Site "Chess.com"]
[Date "2020.04.14"]
[Round "2"]
[White "Setne007"]
[Black "CaspiIsrael"]
[Result "0-1"]
[WhiteElo "2283"]
[BlackElo "2535"]
[TimeControl "180+1"]
[EndTime "10:17:40 PDT"]
[Termination "CaspiIsrael won by resignation"]

1. e4 {[%clk 0:03:00.8]} 1... d5 {[%clk 0:02:58.3]} 2. d3 {[%clk 0:02:57.8]}
2... Nf6 {[%clk 0:02:40.8]} 3. e5 {[%clk 0:02:52.7]} 3... Nfd7 {[%clk
0:02:40.6]} 4. f4 {[%clk 0:02:52.6]} 4... c5 {[%clk 0:02:40]} 5. c3 {[%clk
0:02:51.9]} 5... Nc6 {[%clk 0:02:39.8]} 6. Nf3 {[%clk 0:02:52.1]} 6... e6 {[%clk
0:02:38.9]} 7. g3 {[%clk 0:02:52.1]} 7... Be7 {[%clk 0:02:36.6]} 8. h4 {[%clk
0:02:48.3]} 8... b6 {[%clk 0:02:27.7]} 9. Bh3 {[%clk 0:02:48.3]} 9... Bb7 {[%clk
0:02:22.7]} 10. Qe2 {[%clk 0:02:46.9]} 10... Qc7 {[%clk 0:02:20.5]} 11. a3
{[%clk 0:02:45]} 11... O-O-O {[%clk 0:02:18.9]} 12. Be3 {[%clk 0:02:43.9]} 12...
Kb8 {[%clk 0:02:18.4]} 13. d4 {[%clk 0:02:41.6]} 13... cxd4 {[%clk 0:02:14.1]}
14. cxd4 {[%clk 0:02:41.4]} 14... Na5 {[%clk 0:02:11.6]} 15. Nbd2 {[%clk
0:02:40]} 15... Rc8 {[%clk 0:02:11.3]} 16. O-O {[%clk 0:02:34.9]} 16... Qc2
{[%clk 0:02:07.5]} 17. Rab1 {[%clk 0:02:29.4]} 17... g6 {[%clk 0:01:45.8]} 18.
b4 {[%clk 0:02:23.5]} 18... Nc4 {[%clk 0:01:45.7]} 19. Rfc1 {[%clk 0:02:23.1]}
19... Qa4 {[%clk 0:01:45.1]} 20. Nxc4 {[%clk 0:02:08.9]} 20... Rxc4 {[%clk
0:01:27.7]} 21. Rxc4 {[%clk 0:02:07.1]} 21... dxc4 {[%clk 0:01:28.6]} 22. Ra1
{[%clk 0:01:22.2]} 22... Rc8 {[%clk 0:01:25.9]} 23. Ne1 {[%clk 0:01:15.2]} 23...
c3 {[%clk 0:01:23.1]} 24. Bf1 {[%clk 0:01:11.3]} 24... Bxb4 {[%clk 0:01:16.7]}
25. Nc2 {[%clk 0:01:09.1]} 25... Be7 {[%clk 0:01:15.3]} 26. Qb5 {[%clk
0:01:00.2]} 26... Bc6 {[%clk 0:01:10.9]} 27. Qxa4 {[%clk 0:00:52]} 27... Bxa4
{[%clk 0:01:11.8]} 28. Rc1 {[%clk 0:00:44.4]} 28... b5 {[%clk 0:01:05.6]} 29.
Nb4 {[%clk 0:00:41.7]} 29... Nb6 {[%clk 0:01:01.7]} 30. Na6+ {[%clk 0:00:38.5]}
30... Kb7 {[%clk 0:01:00.9]} 31. Nc5+ {[%clk 0:00:39.4]} 31... Bxc5 {[%clk
0:01:01]} 32. dxc5 {[%clk 0:00:39.4]} 32... Nd5 {[%clk 0:01:01.4]} 33. Bd4
{[%clk 0:00:39.3]} 33... a5 {[%clk 0:00:57.3]} 34. Bxc3 {[%clk 0:00:23.4]} 34...
Rxc5 {[%clk 0:00:52.5]} 35. Bd2 {[%clk 0:00:21.4]} 35... Rxc1 {[%clk 0:00:51.9]}
36. Bxc1 {[%clk 0:00:22.3]} 36... Kb6 {[%clk 0:00:43.4]} 37. Kf2 {[%clk
0:00:22.7]} 37... b4 {[%clk 0:00:34.4]} 38. axb4 {[%clk 0:00:20.9]} 38... axb4
{[%clk 0:00:35.3]} 39. Bd3 {[%clk 0:00:16.9]} 39... h5 {[%clk 0:00:34.4]} 40.
Ke2 {[%clk 0:00:13.6]} 40... Bb5 {[%clk 0:00:33.9]} 41. Bb2 {[%clk 0:00:11.6]}
41... Bxd3+ {[%clk 0:00:32]} 42. Kxd3 {[%clk 0:00:11.7]} 42... Kb5 {[%clk
0:00:30.4]} 43. Kd4 {[%clk 0:00:10.5]} 43... Ne7 {[%clk 0:00:30]} 0-1